Cogmind - Beta 16 @@@ ROGUE MODE // 2025.11.26 @ 10:29:48 Player: Infomantis Result: Destroyed by G-47 Trooper with Particle Gun Performance ------------- Evolutions (0) 0 Regions Visited (1) 200 Robots Destroyed (21) 105 Value Destroyed (357) 357 Prototype IDs (0) 0 Alien Tech Used (0) 0 Bonus (0) 0 TOTAL SCORE: 662 Bonus ------- None Cogmind --------- Core Integrity 0/250 Matter 295/300 Energy 250/250 System Corruption 0% Temperature Cool (9) Movement Treading (160) Location -10/Materials Parts ------- > --- POWER (1) -------- Ion Engine > --- PROPULSION (2) --- Light Treads Light Treads > --- UTILITY (2) ------ Medium Storage Unit Seismic Detector > --- WEAPON (2) ------- Light Assault Rifle > --- INVENTORY (10) --- Ion Engine Light Treads Wheel Heat Sink Medium Matter Pod (98) Improved Terrain Scanner Improved Terrain Scanner Seismic Detector Grenade Launcher Mining Laser Peak State ------------ > --- POWER ------------ Ion Engine > --- PROPULSION ------- Light Treads Light Treads > --- UTILITY ---------- Small Storage Unit Seismic Detector > --- WEAPON ----------- Light Assault Rifle Light Assault Rifle > --- INVENTORY -------- Ion Engine Wheel Improved Terrain Scanner Improved Terrain Scanner Seismic Detector Light Assault Rifle Mining Laser Mining Laser [Rating: 8] Favorites ----------- Power Ion Engine Engine Ion Engine Propulsion Light Treads Treads Light Treads Utility Seismic Detector Device Seismic Detector Storage Small Storage Unit Weapon Light Assault Rifle Ballistic Gun Light Assault Rifle Build | -11 -10 ------- Run | Yrd Mat Slots Evolved . | . . Power . | . . Propulsion . | . . Utility . | . . Weapon . | . . Parts Attached 10 | 7 3 Power 2 | 1 1 Engine 2 | 1 1 Core . | . . Reactor . | . . Propulsion 2 | 2 . Treads 2 | 2 . Leg . | . . Wheel . | . . Hover . | . . Flight . | . . Utility 3 | 2 1 Device 1 | 1 . Storage 2 | 1 1 Processor . | . . Hackware . | . . Protection . | . . Artifact . | . . Weapon 3 | 2 1 Energy Gun . | . . Energy Cannon . | . . Ballistic Gun 3 | 2 1 Ballistic Cannon . | . . Launcher . | . . Special Weapon . | . . Impact Weapon . | . . Slashing Weapon . | . . Piercing Weapon . | . . Special Melee Weapon . | . . Unidentified Prototypes . | . . Parts Lost 3 | . 3 Power 1 | . 1 Propulsion . | . . Utility . | . . Weapon 2 | . 2 Highest Loss Streak 2 | . 2 To Critical Strikes . | . . Average Backups 6 | 4 8 Power . | . . Propulsion 1 | . 1 Utility 2 | . 3 Weapon 2 | 2 2 Tool/Special . | . . Unused Backups 13 | 2 11 Power 1 | . 1 Propulsion 3 | 1 2 Utility 5 | . 5 Weapon 4 | 1 3 Tool/Special . | . . Average Slot Usage (%) 98 | . 98 Engine 13 | . 13 Treads 28 | . 28 Device 14 | . 14 Storage 14 | . 14 Ballistic Gun 27 | . 27 Peak Build Rating 8 | 8 8 Average Rating 7 | 6 7 On Entrance 4 | . 8 Avg Prop Armor Cover (%) . | . . Naked Turns . | . . Heaviest Build 18 | 13 18 Greatest Support 40 | 40 40 Greatest Overweight (x) . | . . Average Overweight (x) . | . . Largest Inventory Capacity 10 | 8 10 Average Capacity 8 | 7 9 Most Carried 10 | 8 10 Average Carried 6 | 4 8 Final Capacity 10 | 8 10 Final Carried 10 | 8 10 Class Distribution -------------------- 100% | Mutant Dominant Class ---------------- Mutant | -10/Materials Resources | -11 -10 ----------- Run | Yrd Mat Matter Collected 551 | 346 205 Remotely . | . . Salvage Created 640 | 287 353 Parts 49 | 26 23 Haulers Intercepted . | . . Recyclers Shooed . | . . Parts Field Recycled . | . . Retrieved Matter . | . . Parts Self-Destructed . | . . Prevented . | . . Parts Restored . | . . Kills | -11 -10 ------- Run | Yrd Mat Combat Hostiles Destroyed 10 | . 10 Guns 10 | . 10 Classes Destroyed 4 | 2 2 Tunneler 10 | 9 1 Recycler 1 | 1 . Swarmer 3 | . 3 Grunt 7 | . 7 Best Kill Streak 5 | 5 5 Combat Bots Only 5 | . 5 Max Kills in Single Turn 1 | 1 1 Gunslinging . | . . Exploded . | . . Melee . | . . Uniques/NPCs Destroyed . | . . Combat | -11 -10 -------- Run | Yrd Mat Hostile Shots Fired 84 | . 84 Missed 17 | . 17 Hits 67 | . 67 Projectile 67 | . 67 Critical Strikes 2 | . 2 Damage Taken 785 | . 785 Core 253 | . 253 Absorbed by Shields . | . . Core Remaining (%) 100 | 100 . Volleys Fired 89 | 39 50 Largest 2 | 2 2 Hottest 40 | 40 40 Shots Fired 175 | 78 97 Gun 175 | 78 97 Cannon . | . . Launcher . | . . Special . | . . Kinetic 175 | 78 97 Thermal . | . . Explosive . | . . Electromagnetic . | . . Robot Hit Streak 13 | 11 13 Robot Miss Streak 3 | 3 3 Penetration Max . | . . Secondary Targets 1 | . 1 Max Gunslinging Chain 1 | . 1 Shots Hit Robots 119 | 51 68 Core Hits 44 | 19 25 Critical Kills . | . . Critical Parts Destroyed 3 | 1 2 Critical Strikes 3 | 1 2 Destroy 3 | 1 2 Melee Attacks . | . . Impact . | . . Slashing . | . . Piercing . | . . Sneak Attacks . | . . Combat Hostiles . | . . Follow-up Attacks . | . . Damage Inflicted 995 | 444 551 Guns 984 | 440 544 Cannons . | . . Explosions . | . . Melee . | . . Ramming 11 | 4 7 Kinetic 984 | 440 544 Thermal . | . . Explosive . | . . Electromagnetic . | . . Impact . | . . Slashing . | . . Piercing . | . . Highest Corruption . | . . Average Corruption . | . . Corruption Purged . | . . Corruption Blocked . | . . Overload Shots . | . . Overflow Damage . | . . Projectiles . | . . Explosions . | . . Melee . | . . Knockbacks . | . . Impact . | . . Kinetic . | . . Secondary . | . . Self-Inflicted Damage . | . . Shots . | . . Rammed 2 | 1 1 Targets Rammed 2 | 1 1 Kicked . | . . Crushed . | . . Highest Temperature 31 | . 31 Average Temperature 8 | . 8 Received Heat Transfer 396 | . 396 Siege Activations . | . . Martial Activations . | . . Shielding Activations . | . . Robots Disrupted . | . . Combat Hostiles . | . . Robots Corrupted . | . . Combat Hostiles . | . . Parts Fried . | . . Impact Corruptions . | . . Robots Melted . | . . Combat Hostiles . | . . Parts Melted . | . . Heat Transferred . | . . Parts Sabotaged . | . . Parts Stolen . | . . Parts Stripped . | . . Power Chain Reactions . | . . Alert | -11 -10 ------- Run | Yrd Mat Maximum Alert Level . | . . Low Security (%) 100 | 100 100 Level 1 . | . . Level 2 . | . . Level 3 . | . . Level 4 . | . . Level 5 . | . . High Security . | . . Max Security . | . . Peak Influence 100 | 5 100 Initial . | . . Average 26 | 1 46 Influence Increases 336 | 50 286 Destroy 0b10 Robot/C 200 | . 200 Destroy 0b10 Robot/NC 55 | 50 5 Destroy Leader 40 | . 40 Successful Hack 26 | . 26 Lose Combat Pursuer 15 | . 15 Influence Decreases 280 | 50 230 Time Decay 250 | 50 200 Lost Part 30 | . 30 Squads Dispatched 3 | . 3 Investigation 1 | . 1 Extermination . | . . Reinforcement 2 | . 2 Assault . | . . Garrison . | . . Intercept . | . . Searches Triggered . | . . Construction Impeded . | . . Haulers Reinforced . | . . Active Scanning Responses . | . . Cargo Convoy Interrupts . | . . Stealth | -11 -10 --------- Run | Yrd Mat Distress Signals 1 | . 1 Communications Jammed . | . . Distress Signals . | . . Times Spotted 14 | . 14 Peak Tracking Total 6 | . 6 Tactical Retreats 1 | . 1 Traps | -11 -10 ------- Run | Yrd Mat Traps Triggered 1 | . 1 Indirectly . | . . Trap Hack Attempts . | . . Triggered . | . . Disarmed . | . . Reprogrammed . | . . Reused . | . . Traps Extracted . | . . Installed . | . . Triggered . | . . Machines | -11 -10 ---------- Run | Yrd Mat Machines Disabled . | . . Max in Single Turn . | . . Machines Repaired . | . . Machines Dismantled . | . . Machines Sabotaged . | . . Overloaded Fab Kills . | . . Hacking | -11 -10 --------- Run | Yrd Mat Machines Accessed 3 | . 3 Terminals 3 | . 3 Fabricators . | . . Repair Stations . | . . Recycling Units . | . . Scanalyzers . | . . Garrison Access . | . . Total Hacks 8 | . 8 Successful 4 | . 4 Failed 4 | . 4 Catastrophic . | . . Database Lockouts . | . . Manual 7 | . 7 Terminals 8 | . 8 Fabricators . | . . Repair Stations . | . . Recycling Units . | . . Scanalyzers . | . . Garrison Access . | . . Terminal Hacks 3 | . 3 Part Schematic 2 | . 2 Registered Components 1 | . 1 Fabricator Hacks . | . . Repair Station Hacks . | . . Recycling Unit Hacks . | . . Scanalyzer . | . . Garrison Access Hacks . | . . Unauthorized Hacks 1 | . 1 Terminals 1 | . 1 Botnet 1 | . 1 Fabricators . | . . Repair Stations . | . . Recycling Units . | . . Scanalyzers . | . . Garrison Access . | . . Data Cores Recovered . | . . Used . | . . Hacking Detections 3 | . 3 Full Trace Events . | . . Feedback Events . | . . Feedback Blocked . | . . Robot Schematics Acquired . | . . Robots Built . | . . Authchips . | . . Time . | . . Total Robot Build Rating . | . . Part Schematics Acquired 2 | . 2 Parts Built . | . . Authchips . | . . Time . | . . Total Part Build Rating . | . . Part Studies Acquired . | . . Parts Repaired . | . . Time . | . . Parts Recycled . | . . Recycled Matter . | . . Retrieved Matter . | . . Retrieved Components . | . . Parts Scanalyzed . | . . Part Schematics Acquired . | . . Parts Damaged . | . . Bothacking | -11 -10 ------------ Run | Yrd Mat Used RIF Installer . | . . Robots Hacked . | . . Non-combat . | . . Combat . | . . Robot Hacks Applied . | . . Relay Couplers Released . | . . Fabnet Peak Effective % . | . . Robots Rewired . | . . Allies Hacked . | . . Hacks Repelled . | . . Allies | -11 -10 -------- Run | Yrd Mat Total Allies . | . . Largest Group . | . . Highest-Rated Group . | . . Highest-Rated Ally . | . . Total Orders . | . . Ally Attacks . | . . Total Damage . | . . Kills . | . . Allies Corrupted . | . . Allies Melted . | . . Intel | -11 -10 ------- Run | Yrd Mat Active Infowar (turns) 646 | 154 492 Seismic 646 | 154 492 Robot Analysis Total . | . . Derelict Logs Recovered . | . . Drone Launches . | . . Drone Recoveries . | . . Exploration | -11 -10 ------------- Run | Yrd Mat Turns Passed 880 | 388 492 Spaces Moved 367 | 162 205 Core 4 | 4 . Treads 363 | 158 205 Legs . | . . Wheels . | . . Hover . | . . Flight . | . . Fastest Speed 50 | 50 160 Average Speed 158 | 157 160 Slowest Speed 160 | 160 160 Overloaded Moves . | . . Propulsion Burnouts . | . . Robots Hopped . | . . Potential Cave-ins . | . . Cave-ins Triggered . | . . Exploration Rate (%) 17 | 9 26 Regions Visited 1 Branch Regions . Pre-discovered Areas . | . . Known Exits Taken . | . . Unknown Exits Taken 1 | 1 . Scrap Searched . | . . Spaces Dug . | . . Terrain Destroyed . | . . Melee . | . . Projectile . | . . AOE . | . . Terrain Rammed . | . . Walls Destroyed . | . . Machines Disabled . | . . Actions | -11 -10 --------- Run | Yrd Mat Total 522 | 230 292 Wait 35 | 9 26 Move 366 | 161 205 Hop . | . . Pick Up 16 | 11 5 Fast Attach 6 | 6 . Attach 3 | 1 2 Detach . | . . Swap 1 | . 1 Drop 4 | 2 2 Fire 89 | 39 50 Melee . | . . Ram . | . . Kick . | . . Crush 2 | 1 1 Escape Stasis . | . . Rewire . | . . Trap . | . . Miscellaneous . | . . Route ------- -11/Scrapyard -10/Materials History --------- Turn | Location | Event 3 | -11/Scrapyard | Discovered new exit (range 16) 389 | -11/Scrapyard | Entered Materials 390 | -10/Materials | Build established: Mutant 703 | -10/Materials | Core integrity fell below 50% 785 | -10/Materials | Core integrity fell below 20% 881 | -10/Materials | Destroyed by G-47 Trooper with Particle Gun Last Messages --------------- 00710_ Ion Engine destroyed. 00723_ G-34 Mercenary suffers critical hit (Destroy). 00723_ Destroyed Aluminum Leg. 00726_ G-34 Mercenary destroyed. 00728_ Lgt. Assault Rifle destroyed. 00737_ G-34 Mercenary destroyed. 00740_ Acquired 38 matter. 00743_ Acquired 41 matter. 00754_ Acquired Ion Engine. 00759_ Acquired Heat Sink. 00789_ R-06 Scavenger collects Sml. Laser. 00789_ G-34 Mercenary destroyed. 00795_ Acquired 45 matter. 00796_ Acquired 33 matter. 00812_ Triggered Alarm Trap. 00812_ An alarm sounds. 00812_ ALERT: Alarm triggered, dispatching investigation squad. 00815_ U-05 Engineer lays Concrete. 00877_ Lgt. Assault Rifle destroyed. 00878_ G-34 Mercenary destroyed. Map ----- +----------------------------------------------------+ | ??????????# #?????????????????? | | ??????????# #?????????????????? | | ?########## #?????????????????? | | # T # #?????????????????? | | ? #+##+#######??????????!????? | | ?? """ =# #???????????????? | | ???""""" +! #???????????????? | | ???""""" #= #???????????????? | | ???""""" ## ##### #???????????????? | | ??? """ ## #???# #?????????????!?? | | ??? ## #???# #???????????????? | | ??########## #???# #???????????????? | | ????# """ # #???# ??????????????? | | ????# "T" # ##??# ?????????????? | | ????# # T#??# ????????????? | | ????# + ######+######???????????? | | ????# ! # # #??????????? | | ????# !! # # """ """ #??????????? | | ????######## # """ """ #??????????? | | ???????????# # """ """ #??????????? | | ???????????# # #??????????? | | ???????????# ####+#########??????????? | | ???????????# #??????????????????? | | ???????????# #??????????????????? | | ?????#######g## #??????????????????? | | ?????# """ @# #??????????????????? | | ?????# """"" # ###########????????? | | ?????# """"" !# # #????????? | | ?????? """""*%# %# "" """ #????????? | | ?????# """ =+% # "T """ #????????? | | ?????# # # "" """ #????????? | | ?????# # # #????????? | | ?????# # #* #????????? | | ?????# ! # #%[! #????????? | | ?????########## %+** #????????? | | ??????????????# ! ###########????????? | | ??????????????# %########???????????? | | ??????????????# # #???????????? | | ??????????????# # """ #???????????? | | ??????????????# # """ #???????????? | | ??????????????# # """ #???????????? | | ??????????????# # #???????????? | | ??????????????# # """ #???????????? | | ??????????????# + """ #???????????? | | ??????????????# # """ #???????????? | | ??????????????# # #???????????? | | ???????######## # #???????????? | | ???????# | # # " " #???????????? | | ???????# """ # # "R" #???????????? | | ???????# """ + # """ #???????????? | +----------------------------------------------------+ Best States ------------- Heat Dissipation 25 Energy Generation 10 Energy Capacity 250 Matter Stores 300 Matter Capacity 300 Sight Range 16 Terrain Scan Density 10 Evasion (%) 40 Recoil Reduction 2 Item Schematics ----------------- Hcp. Storage Unit | -10/Materials | Hacked Huge Storage Unit | -10/Materials | Hacked Robot Schematics ------------------ None Fabricated ------------ Nothing Repaired ---------- Nothing Studied --------- None Alien Tech Used ----------------- None Achievements -------------- None Challenges ------------ None Game ------ Seed MassResetMount Manual? 0 Play Time 00:09:02 Cumulative 605.7 hours Start 2025.11.26 @ 10:24:12 End 2025.11.26 @ 10:29:48 Sessions 1 Manual Loads 0 Difficulty Rogue Special Mode None Game No. 342 Rogue 317 Adventurer 7 Explorer 18 Win Type - Total 50 Types 31/1/8/2/1/1/1/3/0/2 Lore% 95 Gallery% 89 Achievement% 60 Wizard Run 0 Options --------- Layout 0 ASCII 0 Keyboard 0 Movement Numpad Keybinds 0 Fullscreen 1 Font 12/Smallcaps Map View 83x54 Zoom Use 0% Tactical HUD 1 Map Filters NONE Filters NONE Steam 1 RUN: 33bd6ca8-118d-4d60-bc22-c1bdff95baed